fUSD/lending_fUSD_20250118
["ID","MTS","AMOUNT","RATE_DAILY","PERIOD"]
[349491641,1737216647791,-1299.15227311,0.0002316,90]
[349491642,1737216647801,-553.98643853,0.0002316,5]
[349491643,1737216647811,-1468.92340779,0.0002316,10]
[349491644,1737216647824,-999.999992,0.0002316,120]
[349491645,1737216647834,-503.49237548,0.0002316,30]
[349491646,1737216647844,-376.2978427,0.0002316,30]
[349491647,1737216647854,-863.19931198,0.0002316,30]
[349491648,1737216647864,-1000.0,0.0002316,30]
[349491649,1737216647874,-927.51518016,0.0002316,120]
[349491650,1737216647884,-236.23157486,0.0002316,120]
[349491651,1737216647895,-1981.37859739,0.0002316,30]
[349491652,1737216647905,-2730.24947046,0.0002316,120]
[349491653,1737216647915,-2032.90287298,0.0002316,120]
[349491654,1737216647925,-728.414124,0.0002316,30]
[349491655,1737216647935,-1957.58280176,0.0002316,5]
[349491656,1737216647946,-694.23170532,0.0002316,10]
[349491657,1737216647956,-1202.81165673,0.0002316,30]
[349491658,1737216647966,-463.16046842,0.0002316,30]
[349491659,1737216647976,-186.33035792,0.0002316,7]
[349491660,1737216647985,-610.05523237,0.0002316,6]
[349491661,1737216647995,-2330.30473421,0.0002316,120]
[349491662,1737216648004,-1008.62108261,0.0002316,15]
[349491663,1737216648014,-942.03743614,0.0002316,20]
[349491664,1737216648030,-744.26069399,0.0002316,10]
[349491665,1737216648041,-261.29996056,0.0002316,30]
[349491666,1737216648051,-36183.20371682,0.0002316,30]
[349491667,1737216648061,-522.24723754,0.0002316,7]
[349491668,1737216648071,-845.51297313,0.0002316,30]
[349491669,1737216648081,-300.0,0.0002316,15]
[349491670,1737216648091,-853.5998955,0.0002316,30]
[349491671,1737216648101,-962.78120817,0.0002316,5]
[349491672,1737216648111,-860.33739018,0.0002316,5]
[349491673,1737216648345,-919.44753859,0.0002316,30]
[349491674,1737216648365,-212.20006503,0.0002316,120]
[349491675,1737216648376,-326.19563448,0.0002316,60]
[349491676,1737216648386,-205.79144719,0.0002316,30]
[349491677,1737216648397,-949.87157798,0.0002316,30]
[349491678,1737216648407,-230.37429374,0.0002316,120]
[349491679,1737216648417,-1219.50754785,0.0002316,15]
[349491680,1737216648426,-2205.47570639,0.0002316,10]
[349491681,1737216648436,-226.40747037,0.0002316,120]
[349491682,1737216648446,-1606.79233309,0.0002316,120]
[349491683,1737216648455,-583.56867897,0.0002316,5]
[349491684,1737216648465,-193.97093231,0.0002316,120]
[349491685,1737216648474,-347.17506147,0.0002316,30]
[349491686,1737216648484,-2235.56857987,0.0002316,10]
[349491687,1737216648493,-1000.0,0.0002316,10]
[349491688,1737216648503,-3819.06591887,0.0002316,7]
[349491689,1737216648513,-249.13678422,0.0002316,120]
[349491690,1737216648528,-500.0,0.0002316,10]
[349491691,1737216648538,-514.05702507,0.0002316,120]
[349491692,1737216648548,-1019.42667561,0.0002316,7]
[349491693,1737216648558,-1280.7828682,0.0002316,120]
[349491694,1737216648567,-1011.81088948,0.0002316,30]
[349491695,1737216648577,-456.63059705,0.0002316,7]
[349491696,1737216648587,-673.00865769,0.0002316,120]
[349491697,1737216648597,-215.61712814,0.0002316,5]
[349491698,1737216648607,-1287.2153437,0.0002316,120]
[349491699,1737216648617,-11937.46274826,0.0002316,120]
[349491700,1737216648626,-338.90259037,0.0002316,120]
[349491701,1737216648636,-873.71842036,0.0002316,30]
[349491702,1737216648646,-270.03375468,0.0002316,10]
[349491703,1737216648655,-549.33730945,0.0002316,120]
[349491704,1737216648666,-201.22323197,0.0002316,30]
[349491705,1737216648676,-1802.80445666,0.0002316,120]
[349491706,1737216648685,-748.70713686,0.0002316,30]
[349491707,1737216648695,-1466.5516673,0.0002316,120]
[349491708,1737216648704,-1025.69007186,0.0002316,30]
[349491709,1737216648713,-263.56296028,0.0002316,30]
[349491710,1737216648722,-212.19579563,0.0002316,30]
[349491711,1737216648731,-400.23480553,0.0002316,45]
[349491712,1737216648740,-1745.91462847,0.0002316,30]
[349491713,1737216648754,-2296.71099024,0.0002316,30]
[349491714,1737216648764,-204.91596711,0.0002316,120]
[349491715,1737216648777,-500.0,0.0002316,7]
[349491716,1737216648788,-3710.66971651,0.0002316,120]
[349491717,1737216648798,-1445.51926986,0.0002316,30]
[349491718,1737216648808,-758.18015962,0.0002316,30]
[349491719,1737216648818,-2913.64072078,0.0002316,120]
[349491720,1737216648829,-213.71799683,0.0002316,7]
[349491721,1737216648839,-1101.178031,0.0002316,30]
[349491722,1737216648848,-297.73633883,0.0002316,30]
[349491723,1737216648858,-756.0,0.0002316,120]
[349491724,1737216648868,-2169.21292065,0.0002316,30]
[349491725,1737216648878,-1095.34397096,0.0002316,120]
[349491726,1737216648887,-1128.31633607,0.0002316,120]
[349491727,1737216648898,-2001.87308977,0.0002316,120]
[349491728,1737216648907,-421.93444732,0.0002316,30]
[349491729,1737216648917,-1792.13973723,0.0002316,120]
[349491730,1737216648928,-155.51322819,0.0002316,120]
[349491731,1737216648938,-5000.0,0.0002316,120]
[349491732,1737216648947,-1881.86573754,0.0002316,30]
[349491733,1737216648957,-7446.55897834,0.0002316,30]
[349491734,1737216648967,-502.32536082,0.0002316,120]
[349491735,1737216648978,-1058.0,0.0002316,10]
[349491736,1737216648988,-1058.0,0.0002316,10]
[349491737,1737216648998,-1058.0,0.0002316,10]
[349491738,1737216649008,-1058.0,0.0002316,10]
[349491739,1737216649017,-1058.0,0.0002316,10]
[349491740,1737216649033,-401.53731885,0.0002316,10]
[349491741,1737216649043,-1058.0,0.0002316,10]
[349491742,1737216649054,-1058.0,0.0002316,10]
[349491743,1737216649064,-1058.0,0.0002316,10]
[349491744,1737216649075,-657.17075601,0.0002316,10]
[349491745,1737216649085,-1058.0,0.0002316,10]
[349491746,1737216649095,-150.0,0.0002316,30]
[349491747,1737216649105,-2665.72109897,0.0002316,120]
[349491748,1737216649117,-1143.79580519,0.0002316,120]
[349491749,1737216649127,-5400.72812504,0.0002316,2]
[349491750,1737216649137,-807.7636609,0.0002316,2]
[349491751,1737216649147,-151.0,0.0002316,7]
[349491752,1737216649157,-151.0,0.0002316,7]
[349491753,1737216649167,-151.0,0.0002316,7]
[349491754,1737216649177,-151.0,0.0002316,7]
[349491755,1737216649187,-151.0,0.0002316,7]
[349491756,1737216649197,-151.0,0.00023162,7]
[349491757,1737216649207,-231.270414,0.00023162,7]
[349491758,1737216649218,-151.0,0.00023162,7]
[349491759,1737216649228,-151.0,0.00023162,7]
[349491760,1737216649238,-151.0,0.00023162,7]
[349491761,1737216649248,-1866.48,0.00023162,2]
[349491762,1737216649259,-1866.48,0.00023162,2]
[349491763,1737216649269,-1866.48,0.00023162,2]
[349491764,1737216649287,-151.357889,0.00023162,7]
[349491765,1737216649298,-1866.48,0.00023162,2]
[349491766,1737216649309,-1866.48,0.00023162,2]
[349491767,1737216649319,-1866.48,0.00023162,2]
[349491768,1737216649330,-1866.48,0.00023162,2]
[349491769,1737216649341,-1866.48,0.00023162,2]
[349491770,1737216649352,-1866.48,0.00023162,2]
[349491771,1737216649363,-1866.48,0.00023162,2]
[349491772,1737216649373,-1866.48,0.00023162,2]
[349491773,1737216649382,-1866.48,0.00023162,2]
[349491774,1737216649393,-1866.48,0.00023162,2]
[349491775,1737216649403,-1866.48,0.00023162,2]
[349491776,1737216649413,-1866.48,0.00023162,2]
[349491777,1737216649423,-1866.65368785,0.00023162,2]
[349491778,1737216649433,-500.0,0.00023162,2]
[349491779,1737216649443,-500.0,0.00023162,2]
[349491780,1737216649452,-500.0,0.00023162,2]
[349491781,1737216649461,-500.0,0.00023162,2]
[349491782,1737216649471,-500.0,0.00023162,2]
[349491783,1737216649480,-500.0,0.00023162,2]
[349491784,1737216649489,-500.0,0.00023162,2]
[349491785,1737216649498,-500.0,0.00023162,2]
[349491786,1737216649507,-500.0,0.00023162,2]
[349491787,1737216649516,-240.75595289,0.00023162,2]
[349491788,1737216649528,-500.0,0.00023162,2]
[349491789,1737216649538,-500.0,0.00023162,2]
[349491790,1737216649547,-500.0,0.00023162,2]
[349491791,1737216649556,-500.0,0.00023162,2]
[349491792,1737216649566,-631.64,0.00023162,2]
[349491793,1737216649575,-500.0,0.00023162,2]
[349491794,1737216649584,-500.0,0.00023162,2]
[349491795,1737216649594,-161.92,0.00023162,2]
[349491796,1737216649603,-500.0,0.00023162,2]
[349491797,1737216649612,-500.0,0.00023162,2]
[349491798,1737216649629,-500.0,0.00023162,2]
[349491799,1737216649640,-500.0,0.00023162,2]
[349491800,1737216649650,-500.0,0.00023162,2]
[349491801,1737216649660,-500.0,0.00023162,2]
[349491802,1737216649669,-500.0,0.00023162,2]
[349491803,1737216649679,-500.0,0.00023162,2]
[349491804,1737216649688,-500.0,0.00023162,2]
[349491805,1737216649698,-616.92,0.00023162,2]
[349491806,1737216649707,-500.0,0.00023162,2]
[349491807,1737216649716,-500.0,0.00023162,2]
[349491808,1737216649726,-500.0,0.00023162,2]
[349491809,1737216649736,-500.0,0.00023162,2]
[349491810,1737216649746,-500.0,0.00023162,2]
[349491811,1737216649757,-500.0,0.00023162,2]
[349491812,1737216649767,-500.0,0.00023162,2]
[349491813,1737216649779,-500.0,0.00023162,2]
[349491814,1737216649788,-500.0,0.00023162,2]
[349491815,1737216649799,-203.68,0.00023162,2]
[349491816,1737216649809,-500.0,0.00023162,2]
[349491817,1737216649818,-500.0,0.00023162,2]
[349491818,1737216649828,-500.0,0.00023162,2]
[349491819,1737216649838,-500.0,0.00023162,2]
[349491820,1737216649849,-500.0,0.00023162,2]
[349491821,1737216649859,-500.0,0.00023162,2]
[349491822,1737216649869,-500.0,0.00023162,2]
[349491823,1737216649879,-500.0,0.00023162,2]
[349491824,1737216649889,-500.0,0.00023162,2]
[349491825,1737216649899,-500.0,0.00023162,2]
[349491826,1737216649910,-516.38,0.00023162,2]
[349491827,1737216649919,-500.0,0.00023162,2]
[349491828,1737216649929,-516.38,0.00023162,2]
[349491829,1737216649938,-318.28,0.00023162,2]
[349491830,1737216649948,-516.38,0.00023162,2]
[349491831,1737216649957,-516.38,0.00023162,2]
[349491832,1737216649967,-516.38,0.00023162,2]
[349491833,1737216649977,-516.38,0.00023162,2]
[349491834,1737216649986,-516.38,0.00023162,2]
[349491835,1737216649996,-516.38,0.00023162,2]
[349491836,1737216650006,-516.38,0.00023162,2]
[349491837,1737216650016,-516.38,0.00023162,2]
[349491838,1737216650031,-516.38,0.00023162,2]
[349491839,1737216650041,-516.38,0.00023162,2]
[349491840,1737216650050,-516.38,0.00023162,2]
[349491841,1737216650060,-516.38,0.00023162,2]
[349491842,1737216650069,-516.38,0.00023162,2]
[349491843,1737216650079,-516.52141108,0.00023162,2]
[349491844,1737216650089,-590.05,0.00023162,2]
[349491845,1737216650098,-590.05,0.00023162,2]
[349491846,1737216650108,-590.05,0.00023162,2]
[349491847,1737216650117,-590.05,0.00023162,2]
[349491848,1737216650126,-590.05,0.00023162,2]
[349491849,1737216650136,-590.05,0.00023162,2]
[349491850,1737216650145,-590.05,0.00023162,2]
[349491851,1737216650154,-590.05,0.00023162,2]
[349491852,1737216650163,-590.05,0.00023162,2]
[349491853,1737216650172,-590.05,0.00023162,2]
[349491854,1737216650182,-590.05,0.00023162,2]
[349491855,1737216650191,-590.05,0.00023162,2]
[349491856,1737216650200,-590.05,0.00023162,2]
[349491857,1737216650209,-590.20842867,0.00023162,2]
[349491858,1737216650218,-500.0,0.00023162,2]
[349491859,1737216650228,-500.0,0.00023162,2]
[349491860,1737216650237,-500.0,0.00023162,2]
[349491861,1737216650247,-500.0,0.00023162,2]
[349491862,1737216650256,-557.40402615,0.00023162,2]
[349491863,1737216650265,-500.0,0.00023162,2]
[349491864,1737216650279,-500.0,0.00023162,2]
[349491865,1737216650290,-500.0,0.00023162,2]
[349491866,1737216650300,-500.0,0.00023162,2]
[349491867,1737216650309,-500.0,0.00023162,2]
[349491868,1737216650319,-500.0,0.00023162,2]
[349491869,1737216650328,-500.0,0.00023162,2]
[349491870,1737216650337,-500.0,0.00023162,2]
[349491871,1737216650347,-500.0,0.00023162,2]
[349491872,1737216650356,-500.0,0.00023162,2]
[349491873,1737216650366,-500.0,0.00023162,2]
[349491874,1737216650375,-328.12,0.00023162,2]
[349491875,1737216650385,-500.0,0.00023162,2]
[349491876,1737216650394,-500.0,0.00023162,2]
[349491877,1737216650403,-500.0,0.00023162,2]
[349491878,1737216650412,-500.0,0.00023162,2]
[349491879,1737216650422,-500.0,0.00023162,2]
[349491880,1737216650431,-500.0,0.00023162,2]
[349491881,1737216650441,-500.0,0.00023162,2]
[349491882,1737216650450,-500.0,0.00023162,2]
[349491883,1737216650460,-500.0,0.00023162,2]
[349491884,1737216650469,-500.0,0.00023162,2]
[349491885,1737216650478,-500.0,0.00023162,2]
[349491886,1737216650488,-500.0,0.00023162,2]
[349491887,1737216650497,-500.0,0.00023162,2]
[349491888,1737216650506,-500.0,0.00023162,2]
[349491889,1737216650515,-489.48,0.00023162,2]
[349491890,1737216650528,-500.0,0.00023162,2]
[349491891,1737216650538,-500.0,0.00023162,2]
[349491892,1737216650547,-500.0,0.00023162,2]
[349491893,1737216650556,-225.08,0.00023162,2]
[349491894,1737216650566,-500.0,0.00023162,2]
[349491895,1737216650575,-427.72,0.00023162,2]
[349491896,1737216650584,-500.0,0.00023162,2]
[349491897,1737216650594,-500.0,0.00023162,2]
[349491898,1737216650603,-272.31891842,0.00023162,2]
[349491899,1737216650612,-500.0,0.00023162,2]
[349491900,1737216650621,-630.54518603,0.00023162,2]
[349491901,1737216650631,-500.0,0.00023162,2]
[349491902,1737216650640,-500.0,0.00023162,2]
[349491903,1737216650649,-500.0,0.00023162,2]
[349491904,1737216650658,-500.0,0.00023162,2]
[349491905,1737216650667,-500.0,0.00023162,2]
[349491906,1737216650677,-500.0,0.00023162,2]
[349491907,1737216650686,-610.87163069,0.00023162,2]
[349491908,1737216650695,-1362.63,0.00023162,2]
[349491909,1737216650704,-1362.63,0.00023162,2]
[349491910,1737216650714,-1362.63,0.00023162,2]
[349491911,1737216650723,-1362.63,0.00023162,2]
[349491912,1737216650732,-1362.63,0.00023162,2]
[349491913,1737216650742,-1362.63,0.00023162,2]
[349491914,1737216650752,-1362.63,0.00023162,2]
[349491915,1737216650764,-1362.63,0.00023162,2]
[349491916,1737216650774,-1362.63,0.00023162,2]
[349491917,1737216650786,-1362.63,0.00023162,2]
[349491918,1737216650796,-1362.63,0.00023162,2]
[349491919,1737216650806,-1362.63,0.00023162,2]
[349491920,1737216650815,-1362.63,0.00023162,2]
[349491921,1737216650825,-1362.69718413,0.00023162,2]
[349491922,1737216650836,-150.0,0.00023162,4]
[349491923,1737216650845,-168.885912,0.00023164,7]
[349491924,1737216650855,-151.0,0.00023164,7]
[349491925,1737216650864,-223.81134036,0.00023167,4]
[349491926,1737216650874,-226.4084922,0.0002317,15]
[349491927,1737216650884,-223.81134036,0.00023182,4]
[349491928,1737216650894,-150.0,0.00023182,4]
[349491929,1737216650903,-150.0,0.00023183,4]
[349491930,1737216650914,-150.0,0.00023188,4]
[349491931,1737216650924,-1239.7,0.00023192,2]
[349491932,1737216650934,-223.81134036,0.00023197,4]
[349491933,1737216650943,-31292.01193435,0.00023198,7]
[349491934,1737216651054,-997.39639989,0.00023198,7]
[349491935,1737216651066,-2315.51916122,0.00023198,7]
[349491936,1737216651077,-384.47,0.00023198,7]
[349491937,1737216651101,-33158.50559996,0.00023198,7]
[349491938,1737216651112,-29372.50619486,0.00023198,7]
[349491939,1737216651123,-7532.29807203,0.00023198,7]
[349491940,1737216651134,-406.98345898,0.00023198,7]
[349491941,1737216651144,-1570.791444,0.00023198,7]
[349491942,1737216651155,-552.04,0.00023198,7]
[349491943,1737216651166,-495.10999,0.00023198,7]
[349491944,1737216651196,-500.0,0.00020773,2]
[349491945,1737216651205,-500.0,0.00020773,2]
[349491946,1737216651215,-517.80937678,0.00022999,2]
[349491947,1737216651225,-243146.20968971,0.00023198,7]
[349491948,1737216651234,-87590.97656455,0.00023199,2]
[349491949,1737216651245,-6327.14863835,0.00023199,2]
[349491950,1737216651255,-2625.0367,0.00023199,2]
[349491951,1737216651294,-163.89390645,0.00020684,2]
[349491952,1737216651304,-500.0,0.00020773,2]
[349491953,1737216651313,-500.0,0.00020773,2]
[349491954,1737216651323,-544.16790501,0.00022943,2]
[349491955,1737216651333,-10232.5834344,0.00023199,2]
[349491956,1737216651345,-1723.79597664,0.00023199,2]
[349491957,1737216651356,-1841.8241634,0.00023199,2]
[349491958,1737216651386,-140.05004949,0.00023199,2]
[349491962,1737216690744,150.0,0.00022488,120]
[349491967,1737216810766,150.0,0.00022321,120]
[349491970,1737216818971,159.74,0.00010137,2]
[349491981,1737216990727,150.0,0.00023527,120]
[349491983,1737217050777,150.0,0.00023298,120]
[349491985,1737217111313,150.0,0.00022734,120]
[349491989,1737217290758,150.0,0.00023175,120]
[349491993,1737217508998,562185.68105729,0.00012,2]
[349491994,1737217509025,100000.0,0.00012,2]
[349491995,1737217527157,770.19670131,0.000108,2]
[349491996,1737217530747,150.0,0.00023281,120]
[349491997,1737217530984,20229.80329869,0.00011,2]
[349492000,1737217570550,-13136.70050939,0.00011,2]
[349492001,1737217570574,-7863.29949061,0.00011,2]
[349492004,1737217633081,4880.95762059,0.00024,120]
[349492005,1737217651473,150.0,0.00023336,120]
[349492010,1737217683380,2100.0,0.0001,2]
[349492011,1737217683407,2100.0,0.0001,2]
[349492012,1737217683431,2100.0,0.0001,2]
[349492013,1737217683457,2100.0,0.0001,2]
[349492014,1737217683483,800.0,0.0001,2]
[349492015,1737217683509,21000.0,0.0001,2]
[349492023,1737217710772,150.0,0.00023388,120]
[349492054,1737217770809,150.0,0.00022556,120]
[349492080,1737217831837,-300.0,9.999e-05,2]
[349492081,1737217831847,-1809.35046223,0.0001,2]
[349492083,1737217831859,-3529.91985773,0.0001,2]
[349492084,1737217832129,-839.4699975,0.0001,2]
[349492085,1737217832183,-9132.48388277,0.0001,2]
[349492086,1737217832193,-255.41,0.00010137,2]
[349492087,1737217832202,-11451.92237513,0.00011,2]
[349492088,1737217832242,-28948.35684414,0.00011,2]
[349492089,1737217832252,-10041.36119385,0.00011298,2]
[349492090,1737217832263,-366.54166087,0.00011298,2]
[349492091,1737217832300,-391.23155865,0.00011298,2]
[349492092,1737217832360,-343.21374893,0.00011298,2]
[349492135,1737217837838,-5215.6518377,0.00011298,2]
[349492136,1737217837848,-361.45026322,0.00011973,2]
[349492137,1737217837857,-25690.30305856,0.00012,2]
[349492138,1737217837868,-791.47001,0.00012,2]
[349492139,1737217838005,-10425.3336,0.00012,2]
[349492140,1737217838017,-72677.53502899,0.00012,2]
[349492141,1737217838028,-6222.183259,0.00012,2]
[349492142,1737217838116,-546.24501335,0.00012,2]
[349492143,1737217838130,-2542.7,0.00012,2]
[349492144,1737217838145,-3816374.56691218,0.00012,2]
[349492145,1737217838157,-1024.0,0.00012,2]
[349492146,1737217838173,-525.91613554,0.00012,2]
[349492147,1737217838290,-2185.14699872,0.00012,2]
[349492148,1737217838305,-25423.92215157,0.00012,2]
[349492149,1737217838319,-2185.12923394,0.00012,2]
[349492150,1737217838333,-84185.19961767,0.00012,2]
[349492263,1737217839944,-3238.40054909,0.00012,2]
[349492264,1737217839956,-24493.76555995,0.00012,2]
[349492265,1737217840002,-3420.54175172,0.00012,2]
[349492266,1737217840014,-9372.7476,0.00012,2]
[349492267,1737217840060,-12487.85229783,0.00012,2]
[349492338,1737217842952,-2813.55211857,0.00012,2]
[349492339,1737217842964,-1041.3,0.00012,2]
[349492340,1737217843175,-1267.16329199,0.00012,2]
[349492356,1737217845787,-5648.45911037,0.00012,2]
[349492357,1737217845799,-821.90769,0.00012,2]
[349492358,1737217845847,-383.3639908,0.00012,2]
[349492359,1737217845915,-1045498.6388755,0.00012,2]
[349492360,1737217845926,-21198.614,0.00012,2]
[349492361,1737217845970,-410.97378757,0.00012,2]
[349492362,1737217845981,-3181.73119994,0.00012,2]
[349492364,1737217950857,150.0,0.0002294,120]
[349492366,1737218010899,150.0,0.00022544,120]
[349492374,1737218319125,150.0,0.0001,2]
[349492395,1737219030618,453.29410557,0.0001,2]
[349492401,1737219032192,-159.53,0.00010137,2]
[349492402,1737219032207,-859.39973776,0.00011347,2]
[349492403,1737219032220,-859.39973774,0.00011374,2]
[349492404,1737219032232,-859.39973774,0.000114,2]
[349492405,1737219032244,-172.13,0.00011447,2]
[349492406,1737219032255,-500.0,0.000115,2]
[349492407,1737219032266,-429.86318034,0.0001156,2]
[349492408,1737219032277,-1350.13105547,0.00011899,2]
[349492409,1737219032291,-268.95441235,0.00011899,2]
[349492410,1737219032307,-49590.35855622,0.000119,2]
[349492411,1737219032326,-37253.55852796,0.000119,2]
[349492412,1737219032337,-259.08263175,0.00011999,2]
[349492413,1737219032349,-500.0,0.00011999,2]
[349492414,1737219032360,-342.2853701,0.00011999,2]
[349492415,1737219032373,-200.37334334,0.00011999,2]
[349492416,1737219032384,-7952.64225323,0.00012,2]
[349492417,1737219032399,-3577.68366401,0.00012,2]
[349492418,1737219032442,-115099.33633588,0.00012,2]
[349492419,1737219032457,-15860.2689225,0.00012,2]
[349492423,1737219036670,-62423.77673151,0.00012,2]
[349492462,1737219038007,-1664.73713645,0.00012,2]
[349492463,1737219038022,-13136.5,0.00012,2]
[349492464,1737219038036,-6703.99445292,0.00012,2]
[349492465,1737219038066,-8390.41828939,0.00012,2]
[349492466,1737219038082,-535.48683215,0.00012,2]
[349492467,1737219038097,-23364.15632635,0.00012,2]
[349492468,1737219038108,-500.0,0.00012,2]
[349492469,1737219038120,-3000.0,0.00012,2]
[349492470,1737219038134,-2173.33,0.00012459,2]
[349492471,1737219038145,-498.74069806,0.00012888,2]
[349492472,1737219038156,-500.0,0.00012888,2]
[349492473,1737219038168,-453.29410557,0.00013,2]
[349492474,1737219038181,-169.47,0.0001311,2]
[349492475,1737219038193,-20613.37180917,0.00013144,2]
[349492476,1737219038206,-1096.60078413,0.00013144,2]
[349492477,1737219038221,-1028.68664027,0.00013144,2]
[349492478,1737219038234,-385.01998,0.00013144,2]
[349492479,1737219038296,-14674.41357714,0.00013144,2]
[349492480,1737219038318,-49045.82429346,0.00013144,2]
[349492481,1737219038329,-1823.31,0.00013209,2]
[349492482,1737219038341,-1000.0,0.00013435,2]
[349492483,1737219038355,-1852.42,0.00013451,2]
[349492484,1737219038366,-297.13278197,0.00013699,2]
[349492485,1737219038378,-250.0,0.00013987,2]
[349492486,1737219038390,-150.0,0.00013998,2]
[349492487,1737219038403,-500.0,0.00014014,2]
[349492488,1737219038414,-1619.08546782,0.00014139,2]
[349492489,1737219038424,-350.0,0.0001424,2]
[349492490,1737219038434,-780.71,0.00014349,2]
[349492491,1737219038445,-33651.26268379,0.00014389,2]
[349492492,1737219038462,-6367.13963558,0.00014389,2]
[349492493,1737219038477,-26046.45447438,0.00014389,2]
[349492494,1737219038493,-2470.0,0.00014389,2]
[349492495,1737219038518,-18309.06029042,0.00014389,2]
[349492496,1737219038534,-1500.0,0.00014437,2]
[349492497,1737219038544,-200.0,0.0001467,2]
[349492498,1737219038555,-509.02168404,0.00014722,2]
[349492499,1737219038571,-1664.30831596,0.00014722,2]
[349492500,1737219038583,-169.22,0.00014781,2]
[349492501,1737219038595,-250.0,0.00014956,2]
[349492502,1737219038607,-550.0,0.00015,2]
[349492503,1737219038624,-150.0,0.00015068,2]
[349492505,1737219038635,-500.0,0.00015376,2]
[349492507,1737219038646,-250.0,0.00015404,2]
[349492509,1737219038657,-185.98,0.00015479,2]
[349492511,1737219038668,-6734.24216985,0.00015479,2]
[349492513,1737219038682,-341.24596483,0.00015479,2]
[349492639,1737219040190,-194.87048038,0.00015479,2]
[349492641,1737219040207,-437.505,0.00015479,2]
[349492644,1737219040220,-367.62451962,0.00015479,2]
[349492646,1737219040232,-152.71,0.00015535,2]
[349492648,1737219040242,-152.71,0.00015541,2]
[349492650,1737219040252,-26.95548068,0.00015547,2]
[349492652,1737219040266,-125.75451932,0.00015547,2]
[349492654,1737219040276,-152.71,0.00015552,2]
[349492657,1737219040287,-152.71,0.00015558,2]
[349492659,1737219040298,-152.71,0.00015564,2]
[349492661,1737219040312,-152.71,0.0001557,2]
[349492663,1737219040323,-152.71,0.00015576,2]
[349492665,1737219040333,-152.71,0.00015582,2]
[349492667,1737219040344,-152.71,0.00015588,2]
[349492669,1737219040355,-152.71,0.00015594,2]
[349492671,1737219040366,-152.71,0.000156,2]
[349492673,1737219040377,-152.71,0.00015606,2]
[349492675,1737219040388,-33.34548068,0.00015612,2]
[349492678,1737219040402,-119.36451932,0.00015612,2]
[349492680,1737219040413,-14613.5214775,0.00015633,2]
[349492682,1737219040425,-2546.74740531,0.00015633,2]
[349492685,1737219040440,-2481.86169017,0.00015633,2]
[349492699,1737219044047,-453.29410557,0.00014,2]
[349492700,1737219044056,-173.63,0.0001543,2]
[349492701,1737219044068,-4842.92316994,0.00015633,2]
[349492702,1737219044164,-1035.1,0.00015633,2]
[349492703,1737219044176,-774.6985844,0.00015633,2]
[349492704,1737219044339,-1644.234,0.00015633,2]
[349492873,1737219045988,-3276.13504905,0.00015633,2]
[349492880,1737219046049,-364.3061579,0.00015633,2]
[349492882,1737219046068,-461.3214422,0.00015633,2]
[349492887,1737219046103,-3963.96000004,0.00015633,2]
[349492900,1737219046219,-2888.53190143,0.00015633,2]
[349492984,1737219896775,176.56,0.00010137,2]
[349493134,1737220232350,-168.78,0.00012865,2]
[349493136,1737220232360,-1982.91,0.00014237,2]
[349493137,1737220232369,-430.21218565,0.00015511,2]
[349493138,1737220232379,-3000.0,0.00015633,2]
[349493139,1737220232388,-453.29410557,0.00016,2]
[349493140,1737220232397,-500.0,0.00016056,2]
[349493141,1737220232407,-1000.0,0.00016087,2]
[349493142,1737220232416,-624.56,0.00016092,2]
[349493143,1737220232429,-1500.0,0.00016092,2]
[349493144,1737220232439,-1003.19,0.00016092,2]